fUSD/lending_fUSD_20250709
["ID","MTS","AMOUNT","RATE_DAILY","PERIOD"]
[370441000,1752019848005,-500.0,0.00024657,2]
[370441002,1752019848014,-2233.5,0.00024657,2]
[370441004,1752019848023,-500.0,0.00024657,2]
[370441006,1752019848032,-500.0,0.00024657,2]
[370441008,1752019848041,-48835.37,0.00024657,2]
[370441010,1752019848050,-1648.61,0.00024657,2]
[370441012,1752019848060,-460.0,0.00024657,2]
[370441014,1752019848069,-460.0,0.00024657,2]
[370441016,1752019848078,-460.0,0.00024657,2]
[370441018,1752019848087,-2068.84,0.00024657,2]
[370441020,1752019848096,-1718.63,0.00024657,2]
[370441022,1752019848106,-460.0,0.00024657,2]
[370441024,1752019848115,-299.62952695,0.00024657,2]
[370441026,1752019848124,-460.0,0.00024657,2]
[370441028,1752019848133,-460.0,0.00024657,2]
[370441030,1752019848143,-12755.31,0.00024657,2]
[370441032,1752019848152,-605.1,0.00024657,2]
[370441034,1752019848161,-460.0,0.00024657,2]
[370441036,1752019848170,-1272.66,0.00024657,2]
[370441038,1752019848180,-6651.66,0.00024657,2]
[370441040,1752019848189,-460.0,0.00024657,2]
[370441042,1752019848199,-460.0,0.00024657,2]
[370441044,1752019848208,-460.0,0.00024657,2]
[370441046,1752019848218,-460.0,0.00024657,2]
[370441048,1752019848227,-460.0,0.00024657,2]
[370441050,1752019848236,-1168.39,0.00024657,2]
[370441052,1752019848245,-1609.58,0.00024657,2]
[370441054,1752019848254,-460.0,0.00024657,2]
[370441056,1752019848263,-1846.29,0.00024657,2]
[370441058,1752019848273,-1194.39,0.00024657,2]
[370441060,1752019848282,-2329.02,0.00024657,2]
[370441062,1752019848291,-460.0,0.00024657,2]
[370441064,1752019848300,-460.0,0.00024657,2]
[370441066,1752019848309,-460.0,0.00024657,2]
[370441068,1752019848318,-1002.57,0.00024657,2]
[370441070,1752019848328,-460.0,0.00024657,2]
[370441072,1752019848337,-4338.29,0.00024657,2]
[370441074,1752019848347,-638.66,0.00024657,2]
[370441076,1752019848357,-460.0,0.00024657,2]
[370441078,1752019848366,-460.0,0.00024657,2]
[370441080,1752019848376,-460.0,0.00024657,2]
[370441082,1752019848385,-2803.56,0.00024657,2]
[370441084,1752019848396,-480.25952535,0.00024657,2]
[370441086,1752019848406,-4241.15,0.00024657,2]
[370441088,1752019848417,-787.51,0.00024657,2]
[370441090,1752019848426,-460.0,0.00024657,2]
[370441092,1752019848436,-221.55436858,0.00024657,2]
[370441094,1752019848446,-10800.99,0.00024657,2]
[370441096,1752019848455,-495.11,0.00024657,2]
[370441098,1752019848465,-460.0,0.00024657,2]
[370441100,1752019848475,-717.25,0.00024657,2]
[370441102,1752019848485,-588.58,0.00024657,2]
[370441104,1752019848494,-490.0,0.00024657,2]
[370441106,1752019848503,-844.82,0.00024657,2]
[370441108,1752019848513,-3140.86,0.00024657,2]
[370441110,1752019848522,-1551.1,0.00024657,2]
[370441112,1752019848533,-460.0,0.00024657,2]
[370441113,1752019848542,-1775.53,0.00024657,2]
[370441115,1752019848552,-460.0,0.00024657,2]
[370441118,1752019848561,-3180.55,0.00024657,2]
[370441119,1752019848571,-2050.84,0.00024657,2]
[370441122,1752019848580,-908.68,0.00024657,2]
[370441124,1752019848589,-460.0,0.00024657,2]
[370441125,1752019848599,-731.73,0.00024657,2]
[370441128,1752019848610,-460.0,0.00024657,2]
[370441129,1752019848619,-460.0,0.00024657,2]
[370441131,1752019848628,-460.0,0.00024657,2]
[370441133,1752019848638,-622.59,0.00024657,2]
[370441136,1752019848647,-460.0,0.00024657,2]
[370441138,1752019848660,-958.03,0.00024657,2]
[370441140,1752019848670,-661.49,0.00024657,2]
[370441142,1752019848680,-460.0,0.00024657,2]
[370441143,1752019848689,-506.5,0.00024657,2]
[370441145,1752019848700,-460.0,0.00024657,2]
[370441147,1752019848710,-4575.0,0.00024657,2]
[370441150,1752019848720,-460.0,0.00024657,2]
[370441151,1752019848729,-1157.98,0.00024657,2]
[370441153,1752019848739,-19786.81,0.00024657,2]
[370441155,1752019848748,-719.34,0.00024657,2]
[370441157,1752019848758,-6309.43,0.00024657,2]
[370441159,1752019848767,-657.93,0.00024657,2]
[370441161,1752019848776,-966.29,0.00024657,2]
[370441163,1752019848786,-570.32,0.00024657,2]
[370441166,1752019848795,-570.32,0.00024657,2]
[370441168,1752019848804,-460.0,0.00024657,2]
[370441169,1752019848814,-570.32,0.00024657,2]
[370441172,1752019848823,-570.32,0.00024657,2]
[370441173,1752019848832,-411.94407325,0.00024657,2]
[370441175,1752019848842,-570.32,0.00024657,2]
[370441177,1752019848851,-460.0,0.00024657,2]
[370441180,1752019848861,-570.32,0.00024657,2]
[370441182,1752019848870,-1912.72,0.00024657,2]
[370441184,1752019848879,-460.0,0.00024657,2]
[370441185,1752019848888,-1107.95,0.00024657,2]
[370441187,1752019848898,-460.0,0.00024657,2]
[370441189,1752019848908,-6374.06,0.00024657,2]
[370441191,1752019848917,-460.0,0.00024657,2]
[370441193,1752019848926,-2825.49,0.00024657,2]
[370441195,1752019848936,-1896.02,0.00024657,2]
[370441197,1752019848945,-460.0,0.00024657,2]
[370441200,1752019848955,-460.0,0.00024657,2]
[370441202,1752019848964,-8939.04,0.00024657,2]
[370441203,1752019848974,-460.0,0.00024657,2]
[370441205,1752019848983,-460.0,0.00024657,2]
[370441208,1752019848993,-1702.58,0.00024657,2]
[370441209,1752019849002,-957.0,0.00024657,2]
[370441212,1752019849011,-460.0,0.00024657,2]
[370441213,1752019849021,-7229.21,0.00024657,2]
[370441215,1752019849030,-460.0,0.00024657,2]
[370441217,1752019849040,-198.18731291,0.00024657,2]
[370441219,1752019849049,-551.43,0.00024657,2]
[370441221,1752019849058,-460.0,0.00024657,2]
[370441223,1752019849067,-460.0,0.00024657,2]
[370441225,1752019849076,-460.0,0.00024657,2]
[370441227,1752019849085,-1513.61,0.00024657,2]
[370441229,1752019849094,-533.08,0.00024657,2]
[370441231,1752019849103,-777.34,0.00024657,2]
[370441233,1752019849113,-460.0,0.00024657,2]
[370441235,1752019849122,-1326.58,0.00024657,2]
[370441237,1752019849132,-489.39,0.00024657,2]
[370441239,1752019849141,-460.0,0.00024657,2]
[370441241,1752019849150,-1046.38,0.00024657,2]
[370441243,1752019849159,-887.76,0.00024657,2]
[370441245,1752019849168,-512.78,0.00024657,2]
[370441247,1752019849177,-755.7,0.00024657,2]
[370441249,1752019849186,-1790.01,0.00024657,2]
[370441251,1752019849195,-460.0,0.00024657,2]
[370441253,1752019849204,-460.0,0.00024657,2]
[370441255,1752019849213,-11105.08,0.00024657,2]
[370441256,1752019849223,-898.08,0.00024657,2]
[370441258,1752019849233,-690.73,0.00024657,2]
[370441260,1752019849242,-460.0,0.00024657,2]
[370441262,1752019849251,-460.0,0.00024657,2]
[370441264,1752019849261,-1129.95,0.00024657,2]
[370441266,1752019849270,-500.0,0.00024657,2]
[370441268,1752019849279,-2470.62,0.00024657,2]
[370441270,1752019849288,-639.16,0.00024657,2]
[370441272,1752019849297,-460.0,0.00024657,2]
[370441274,1752019849306,-500.0,0.00024657,2]
[370441276,1752019849315,-500.0,0.00024657,2]
[370441278,1752019849325,-500.0,0.00024657,2]
[370441280,1752019849334,-2554.71,0.00024657,2]
[370441282,1752019849343,-500.0,0.00024657,2]
[370441284,1752019849352,-500.0,0.00024657,2]
[370441286,1752019849361,-500.0,0.00024657,2]
[370441289,1752019849371,-1926.0,0.00024657,2]
[370441290,1752019849380,-339.33,0.00024657,2]
[370441292,1752019849389,-867.04,0.00024657,2]
[370441294,1752019849399,-952.78,0.00024657,2]
[370441296,1752019849408,-579.46,0.00024657,2]
[370441298,1752019849417,-1695.54,0.00024657,2]
[370441300,1752019849427,-2111.68,0.00024657,2]
[370441302,1752019849436,-460.0,0.00024657,2]
[370441304,1752019849446,-1000.0,0.00024657,2]
[370441306,1752019849455,-460.0,0.00024657,2]
[370441308,1752019849464,-1985.72,0.00024657,2]
[370441310,1752019849474,-879.13,0.00024657,2]
[370441312,1752019849483,-959.05,0.00024657,2]
[370441314,1752019849492,-485.3,0.00024657,2]
[370441316,1752019849501,-4013.57,0.00024657,2]
[370441318,1752019849511,-460.0,0.00024657,2]
[370441320,1752019849521,-8555.18,0.00024657,2]
[370441333,1752019849614,-460.0,0.00024657,2]
[370441336,1752019849662,-3321.23,0.00024657,2]
[370441339,1752019849673,-849.09,0.00024657,2]
[370441341,1752019849683,-460.0,0.00024657,2]
[370441343,1752019849693,-12699.37,0.00024657,2]
[370441345,1752019849704,-460.0,0.00024657,2]
[370441347,1752019849713,-151.0,0.00024657,7]
[370441349,1752019849723,-460.0,0.00024657,2]
[370441351,1752019849733,-151.0,0.00024657,7]
[370441353,1752019849743,-460.0,0.00024657,2]
[370441355,1752019849753,-150.0,0.00024657,2]
[370441357,1752019849762,-500.0,0.00024657,2]
[370441359,1752019849773,-977.04,0.00024657,2]
[370441361,1752019849782,-460.0,0.00024657,2]
[370441363,1752019849792,-460.0,0.00024657,2]
[370441365,1752019849801,-460.0,0.00024657,2]
[370441367,1752019849812,-500.0,0.00024657,2]
[370441369,1752019849821,-1296.36,0.00024657,2]
[370441371,1752019849831,-574.51,0.00024657,2]
[370441373,1752019849841,-2718.46,0.00024657,2]
[370441375,1752019849851,-1742.09,0.00024657,2]
[370441377,1752019849860,-460.0,0.00024657,2]
[370441378,1752019849869,-3305.58,0.00024657,2]
[370441379,1752019849878,-806.03,0.00024657,2]
[370441380,1752019849887,-1019.0,0.00024657,2]
[370441381,1752019849896,-9836.37,0.00024657,2]
[370441382,1752019849905,-460.0,0.00024657,2]
[370441383,1752019849915,-563.27,0.00024657,2]
[370441384,1752019849925,-460.0,0.00024657,2]
[370441385,1752019849934,-460.0,0.00024657,2]
[370441386,1752019849943,-829.39,0.00024657,2]
[370441387,1752019849953,-549.59,0.00024657,2]
[370441388,1752019849962,-460.0,0.00024657,2]
[370441389,1752019849971,-583.20493635,0.00024657,2]
[370441390,1752019849981,-1725.23,0.00024657,2]
[370441392,1752019849991,-19112.92,0.00024657,2]
[370441394,1752019850001,-500.0,0.00024657,2]
[370441396,1752019850010,-500.0,0.00024657,2]
[370441398,1752019850020,-460.0,0.00024657,2]
[370441400,1752019850030,-1423.8,0.00024657,2]
[370441402,1752019850040,-500.0,0.00024657,2]
[370441404,1752019850050,-6492.75,0.00024657,2]
[370441406,1752019850060,-500.0,0.00024657,2]
[370441408,1752019850070,-460.0,0.00024657,2]
[370441410,1752019850080,-500.0,0.00024657,2]
[370441412,1752019850091,-500.0,0.00024657,2]
[370441414,1752019850101,-500.0,0.00024657,2]
[370441416,1752019850111,-500.0,0.00024657,2]
[370441418,1752019850121,-500.0,0.00024657,2]
[370441420,1752019850131,-1207.04,0.00024657,2]
[370441422,1752019850141,-500.0,0.00024657,2]
[370441424,1752019850150,-500.0,0.00024657,2]
[370441426,1752019850160,-460.0,0.00024657,2]
[370441428,1752019850170,-500.0,0.00024657,2]
[370441430,1752019850180,-460.0,0.00024657,2]
[370441432,1752019850189,-867.29,0.00024657,2]
[370441434,1752019850199,-9097.08,0.00024657,2]
[370441436,1752019850208,-899.85,0.00024657,2]
[370441438,1752019850217,-1783.0,0.00024657,2]
[370441440,1752019850226,-460.0,0.00024657,2]
[370441442,1752019850236,-486.73,0.00024657,2]
[370441444,1752019850246,-747.78,0.00024657,2]
[370441447,1752019850256,-1478.71,0.00024657,2]
[370441449,1752019850265,-460.0,0.00024657,2]
[370441451,1752019850275,-490.95600379,0.00024657,2]
[370441453,1752019850284,-1996.33,0.00024657,2]
[370441455,1752019850294,-460.0,0.00024657,2]
[370441457,1752019850303,-460.0,0.00024657,2]
[370441459,1752019850313,-529.76,0.00024657,2]
[370441461,1752019850322,-460.0,0.00024657,2]
[370441463,1752019850331,-1108.6,0.00024657,2]
[370441465,1752019850341,-2510.61,0.00024657,2]
[370441467,1752019850351,-1959.25,0.00024657,2]
[370441469,1752019850361,-17671.73,0.00024657,2]
[370441471,1752019850370,-460.0,0.00024657,2]
[370441473,1752019850380,-151.0,0.00024657,7]
[370441475,1752019850390,-460.0,0.00024657,2]
[370441477,1752019850400,-460.0,0.00024657,2]
[370441479,1752019850409,-1089.63,0.00024657,2]
[370441481,1752019850418,-1223.51,0.00024657,2]
[370441483,1752019850428,-150.0,0.00024657,2]
[370441485,1752019850437,-152.131976,0.00024657,7]
[370441487,1752019850446,-469.57,0.00024657,2]
[370441489,1752019850456,-1926.65,0.00024657,2]
[370441491,1752019850465,-460.0,0.00024657,2]
[370441493,1752019850474,-1658.53,0.00024657,2]
[370441495,1752019850484,-200.0,0.00024657,2]
[370441497,1752019850493,-460.0,0.00024657,2]
[370441499,1752019850503,-2088.68,0.00024657,2]
[370441501,1752019850512,-460.0,0.00024657,2]
[370441503,1752019850521,-460.0,0.00024657,2]
[370441505,1752019850531,-200.0,0.00024657,2]
[370441507,1752019850542,-3182.15,0.00024657,2]
[370441509,1752019850551,-460.0,0.00024657,2]
[370441511,1752019850561,-554.78,0.00024657,2]
[370441513,1752019850571,-460.0,0.00024657,2]
[370441515,1752019850581,-150.0,0.00024657,2]
[370441517,1752019850590,-460.0,0.00024657,2]
[370441519,1752019850600,-150.0,0.00024657,2]
[370441521,1752019850610,-460.0,0.00024657,2]
[370441523,1752019850619,-2607.13,0.00024657,2]
[370441525,1752019850629,-569.47,0.00024657,2]
[370441527,1752019850639,-500.0,0.00024657,2]
[370441529,1752019850650,-460.0,0.00024657,2]
[370441531,1752019850661,-331.54317737,0.00024657,2]
[370441533,1752019850671,-3866.87,0.00024657,2]
[370441535,1752019850681,-460.0,0.00024657,2]
[370441537,1752019850691,-150.0,0.00024657,2]
[370441539,1752019850701,-469.03,0.00024657,2]
[370441541,1752019850711,-1942.78,0.00024657,2]
[370441543,1752019850720,-460.0,0.00024657,2]
[370441545,1752019850731,-1042.38,0.00024657,2]
[370441547,1752019850740,-1631.77,0.00024657,2]
[370441549,1752019850750,-446.89695357,0.00024657,2]
[370441551,1752019850760,-3413.02,0.00024657,2]
[370441553,1752019850769,-460.0,0.00024657,2]
[370441555,1752019850779,-610.59,0.00024657,2]
[370441557,1752019850788,-337.8777838,0.00024657,2]
[370441559,1752019850797,-9891.49,0.00024657,2]
[370441561,1752019850807,-523.98,0.00024657,2]
[370441563,1752019850816,-1515.03,0.00024657,2]
[370441565,1752019850826,-14030.71,0.00024657,2]
[370441567,1752019850835,-11710.33,0.00024657,2]
[370441569,1752019850845,-4600.09,0.00024657,2]
[370441571,1752019850854,-460.0,0.00024657,2]
[370441573,1752019850864,-10569.11,0.00024657,2]
[370441575,1752019850873,-460.0,0.00024657,2]
[370441578,1752019850883,-3501.06,0.00024657,2]
[370441580,1752019850893,-460.0,0.00024657,2]
[370441582,1752019850902,-7248.89,0.00024657,2]
[370441584,1752019850913,-1447.63,0.00024657,2]
[370441586,1752019850923,-1077.04,0.00024657,2]
[370441588,1752019850932,-460.0,0.00024657,2]
[370441590,1752019850941,-150.0,0.00024657,2]
[370441592,1752019850951,-3154.34,0.00024657,2]
[370441594,1752019850960,-150.0,0.00024657,2]
[370441595,1752019850970,-3154.34,0.00024657,2]
[370441598,1752019850980,-3259.41,0.00024657,2]
[370441600,1752019850989,-2225.85,0.00024657,2]
[370441602,1752019850999,-3154.34,0.00024657,2]
[370441604,1752019851009,-3154.34,0.00024657,2]
[370441606,1752019851018,-3154.34,0.00024657,2]
[370441608,1752019851027,-150.0,0.00024657,2]
[370441610,1752019851037,-3154.34,0.00024657,2]
[370441612,1752019851048,-3154.34,0.00024657,2]
[370441614,1752019851057,-3154.34,0.00024657,2]
[370441616,1752019851066,-150.0,0.00024657,2]
[370441618,1752019851075,-3154.34,0.00024657,2]
[370441620,1752019851085,-3154.34,0.00024657,2]
[370441622,1752019851094,-3154.34,0.00024657,2]
[370441624,1752019851104,-760.0,0.00024657,2]
[370441626,1752019851113,-1960.45,0.00024657,2]
[370441628,1752019851123,-460.0,0.00024657,2]
[370441630,1752019851132,-256.94348463,0.00024657,2]
[370441632,1752019851141,-719.68,0.00024657,2]
[370441634,1752019851151,-767.34,0.00024657,2]
[370441636,1752019851160,-460.0,0.00024657,2]
[370441638,1752019851169,-460.0,0.00024657,2]
[370441640,1752019851179,-591.83,0.00024657,2]
[370441643,1752019851189,-460.0,0.00024657,2]
[370441645,1752019851198,-851.7,0.00024657,2]
[370441647,1752019851207,-460.0,0.00024657,2]
[370441649,1752019851216,-3864.27,0.00024657,2]
[370441651,1752019851225,-460.0,0.00024657,2]
[370441653,1752019851234,-460.0,0.00024657,2]
[370441655,1752019851244,-589.12,0.00024657,2]
[370441657,1752019851253,-1457.42,0.00024657,2]
[370441659,1752019851262,-17477.14,0.00024657,2]
[370441661,1752019851272,-3075.02,0.00024657,2]
[370441663,1752019851281,-3809.39,0.00024657,2]
[370441665,1752019851290,-460.0,0.00024657,2]
[370441667,1752019851300,-855.42,0.00024657,2]
[370441669,1752019851309,-460.0,0.00024657,2]
[370441671,1752019851318,-4572.14,0.00024657,2]
[370441673,1752019851327,-460.0,0.00024657,2]
[370441675,1752019851336,-460.0,0.00024657,2]
[370441677,1752019851346,-460.0,0.00024657,2]
[370441679,1752019851355,-622.02,0.00024657,2]
[370441681,1752019851365,-576.09,0.00024657,2]
[370441683,1752019851374,-460.0,0.00024657,2]
[370441685,1752019851384,-1629.48,0.00024657,2]
[370441687,1752019851393,-19147.48,0.00024657,2]
[370441689,1752019851402,-6785.88,0.00024657,2]
[370441691,1752019851412,-7816.53,0.00024657,2]
[370441693,1752019851422,-468.78,0.00024657,2]
[370441695,1752019851431,-19276.49,0.00024657,2]
[370441697,1752019851441,-1602.39,0.00024657,2]
[370441699,1752019851451,-1227.64,0.00024657,2]
[370441701,1752019851460,-500.0,0.00024657,2]
[370441703,1752019851470,-380.0,0.00024657,2]
[370441705,1752019851480,-460.0,0.00024657,2]
[370441707,1752019851489,-460.0,0.00024657,2]
[370441709,1752019851499,-854.44,0.00024657,2]
[370441711,1752019851508,-2502.91,0.00024657,2]
[370441713,1752019851518,-460.0,0.00024657,2]
[370441715,1752019851527,-460.0,0.00024657,2]
[370441717,1752019851537,-460.0,0.00024657,2]
[370441719,1752019851546,-855.99,0.00024657,2]
[370441721,1752019851556,-460.0,0.00024657,2]
[370441723,1752019851566,-460.0,0.00024657,2]
[370441725,1752019851576,-919.33,0.00024657,2]
[370441727,1752019851585,-702.36,0.00024657,2]
[370441729,1752019851596,-770.54,0.00024657,2]
[370441731,1752019851605,-1611.26,0.00024657,2]
[370441733,1752019851616,-460.0,0.00024657,2]
[370441735,1752019851626,-2694.76,0.00024657,2]
[370441737,1752019851636,-1778.43,0.00024657,2]
[370441739,1752019851648,-2404.0,0.00024657,2]
[370441741,1752019851661,-460.0,0.00024657,2]
[370441744,1752019851671,-1549.52,0.00024657,2]
[370441745,1752019851680,-460.0,0.00024657,2]
[370441747,1752019851690,-460.0,0.00024657,2]
[370441749,1752019851703,-1890.36,0.00024657,2]
[370441752,1752019851713,-3277.2,0.00024657,2]
[370441754,1752019851722,-4875.88,0.00024657,2]
[370441756,1752019851733,-261.39335753,0.00024657,2]
[370441794,1752019852087,-829.35,0.00024657,2]
[370441796,1752019852098,-3857.51,0.00024657,2]
[370441798,1752019852108,-460.0,0.00024657,2]
[370441800,1752019852117,-1011.54,0.00024657,2]
[370441802,1752019852127,-663.04,0.00024657,2]
[370441804,1752019852137,-460.0,0.00024657,2]
[370441806,1752019852147,-6222.85,0.00024657,2]
[370441808,1752019852156,-658.36,0.00024657,2]
[370441810,1752019852166,-151.0,0.00024657,7]
[370441812,1752019852175,-1326.36,0.00024657,2]
[370441814,1752019852185,-460.0,0.00024657,2]
[370441815,1752019852194,-151.0,0.00024657,7]
[370441816,1752019852204,-460.0,0.00024657,2]
[370441817,1752019852214,-151.0,0.00024657,7]
[370441818,1752019852223,-151.0,0.00024657,7]
[370441819,1752019852232,-11720.57,0.00024657,2]
[370441820,1752019852242,-151.0,0.00024657,7]
[370441821,1752019852252,-151.0,0.00024657,7]
[370441822,1752019852261,-473.37,0.00024657,2]
[370441823,1752019852271,-3026.17,0.00024657,2]
[370441824,1752019852280,-1213.17,0.00024657,2]
[370441825,1752019852289,-2689.96,0.00024657,2]
[370441826,1752019852298,-761.74,0.00024657,2]
[370441828,1752019852308,-1116.01,0.00024657,2]
[370441830,1752019852317,-491.05,0.00024657,2]
[370441832,1752019852327,-151.0,0.00024657,7]
[370441834,1752019852337,-151.0,0.00024657,7]
[370441836,1752019852346,-460.0,0.00024657,2]
[370441838,1752019852355,-460.0,0.00024657,2]
[370441840,1752019852365,-151.0,0.00024657,7]
[370441842,1752019852374,-151.0,0.00024657,7]
[370441845,1752019852384,-151.0,0.00024657,7]
[370441847,1752019852394,-151.0,0.00024657,7]
[370441849,1752019852403,-584.86,0.00024657,2]
[370441851,1752019852413,-460.0,0.00024657,2]
[370441853,1752019852423,-460.0,0.00024657,2]
[370441855,1752019852432,-1675.19,0.00024657,2]
[370441857,1752019852442,-314.84649046,0.00024657,2]
[370441859,1752019852451,-6133.68,0.00024657,2]
[370441861,1752019852461,-1560.06,0.00024657,2]
[370441863,1752019852471,-460.0,0.00024657,2]
[370441865,1752019852480,-1404.96,0.00024657,2]
[370441867,1752019852489,-293.27481257,0.00024657,2]
[370441869,1752019852499,-460.0,0.00024657,2]
[370441871,1752019852509,-8194.45,0.00024657,2]
[370441873,1752019852519,-3153.04,0.00024657,2]
[370441875,1752019852529,-7759.09,0.00024657,2]
[370441877,1752019852538,-22341.62,0.00024657,2]
[370441879,1752019852548,-10506.41,0.00024657,2]
[370441881,1752019852558,-483.69,0.00024657,2]
[370441883,1752019852568,-460.0,0.00024657,2]
[370441885,1752019852578,-669.55,0.00024657,2]
[370441887,1752019852587,-566.72,0.00024657,2]
[370441889,1752019852596,-1061.64,0.00024657,2]
[370441891,1752019852607,-3244.99,0.00024657,2]
[370441893,1752019852617,-819.78,0.00024657,2]
[370441895,1752019852626,-506.75,0.00024657,2]
[370441897,1752019852636,-460.0,0.00024657,2]
[370441899,1752019852646,-460.0,0.00024657,2]
[370441901,1752019852661,-1659.39,0.00024657,2]
[370441903,1752019852673,-8879.04,0.00024657,2]
[370441905,1752019852682,-616.03,0.00024657,2]
[370441907,1752019852692,-460.0,0.00024657,2]
[370441909,1752019852702,-460.0,0.00024657,2]
[370441911,1752019852712,-2403.28,0.00024657,2]
[370441913,1752019852721,-460.0,0.00024657,2]
[370441915,1752019852733,-8675.71,0.00024657,2]
[370441917,1752019852745,-460.0,0.00024657,2]
[370441919,1752019852754,-460.0,0.00024657,2]
[370441921,1752019852764,-1230.55,0.00024657,2]
[370441923,1752019852774,-460.0,0.00024657,2]
[370441925,1752019852783,-460.0,0.00024657,2]
[370441927,1752019852792,-460.0,0.00024657,2]
[370441929,1752019852802,-1762.49,0.00024657,2]
[370441931,1752019852811,-226.62539944,0.00024657,2]
[370441933,1752019852822,-813.65,0.00024657,2]
[370441935,1752019852831,-7428.29,0.00024657,2]
[370441937,1752019852841,-460.0,0.00024657,2]
[370441939,1752019852850,-1806.28,0.00024657,2]
[370441941,1752019852861,-8766.21,0.00024657,2]
[370441944,1752019852871,-490.0,0.00024657,2]
[370441946,1752019852882,-460.0,0.00024657,2]
[370441948,1752019852892,-505.58,0.00024657,2]
[370441950,1752019852902,-643.98,0.00024657,2]
[370441952,1752019852911,-460.0,0.00024657,2]
[370441954,1752019852920,-460.0,0.00024657,2]
[370441956,1752019852930,-2381.63,0.00024657,2]
[370441958,1752019852940,-460.0,0.00024657,2]
[370441960,1752019852949,-460.0,0.00024657,2]
[370441962,1752019852959,-460.0,0.00024657,2]
[370441964,1752019852968,-460.0,0.00024657,2]
[370441966,1752019852977,-7600.17,0.00024657,2]
[370441968,1752019852987,-473.38,0.00024657,2]
[370441970,1752019852996,-1651.83,0.00024657,2]
[370441972,1752019853005,-12964.94,0.00024657,2]
[370441974,1752019853015,-802.75,0.00024657,2]
[370441976,1752019853024,-1178.3,0.00024657,2]
[370441978,1752019853034,-1229.51,0.00024657,2]
[370441980,1752019853043,-2882.47,0.00024657,2]
[370441982,1752019853053,-460.0,0.00024657,2]
[370441984,1752019853062,-460.0,0.00024657,2]
[370441986,1752019853072,-7963.97,0.00024657,2]
[370441988,1752019853081,-570.01,0.00024657,2]
[370441990,1752019853091,-2219.66,0.00024657,2]
[370441992,1752019853100,-460.0,0.00024657,2]
[370441994,1752019853109,-3287.83,0.00024657,2]
[370441996,1752019853119,-460.0,0.00024657,2]
[370441998,1752019853128,-460.0,0.00024657,2]
[370442000,1752019853137,-2123.16,0.00024657,2]
[370442002,1752019853146,-1955.81,0.00024657,2]
[370442004,1752019853156,-8641.63,0.00024657,2]
[370442006,1752019853165,-500.0,0.00024657,2]
[370442008,1752019853175,-460.0,0.00024657,2]
[370442010,1752019853184,-952.72,0.00024657,2]
[370442012,1752019853193,-460.0,0.00024657,2]
[370442014,1752019853203,-7264.57,0.00024657,2]
[370442016,1752019853212,-2236.33,0.00024657,2]
[370442018,1752019853222,-467.29,0.00024657,2]
[370442019,1752019853231,-3172.98,0.00024657,2]
[370442020,1752019853241,-460.0,0.00024657,2]
[370442021,1752019853251,-460.0,0.00024657,2]
[370442022,1752019853260,-1540.74,0.00024657,2]